bitfinex/quotes_ETHUSD_20220227
["timestamp","ask_amount","ask_price","bid_price","bid_amount"]
[1645995058368,0.99918861,2655.5,2654.9,2.71678544]
[1645995058569,0.99918861,2655.1,2654.9,1.63316664]
[1645995059074,0.99918861,2655.2,2654.9,1.63316664]
[1645995059271,9.5,2655.1,2654.4,0.06242912]
[1645995059476,9.5,2655.1,2653.9,4.0]
[1645995059477,13.0,2655.1,2653.9,4.0]
[1645995059672,13.0,2655.1,2652.1,4.36824559]
[1645995059673,0.99918861,2654.5,2653.8,0.68557085]
[1645995059878,0.99918861,2654.5,2653.9,6.3676]
[1645995059879,1.32510887,2654.2,2653.9,6.3676]
[1645995060073,0.18128006,2654.3,2653.9,6.3676]
[1645995060074,0.05349,2654.1,2653.9,6.3676]
[1645995060311,0.463,2654.5,2652.8,5.0]
[1645995060312,0.99918861,2654.0,2652.8,5.0]
[1645995060512,0.05195,2653.9,2652.8,5.0]
[1645995060718,0.99918861,2653.1,2652.8,5.0]
[1645995061010,0.99918861,2652.9,2652.8,5.0]
[1645995061216,0.99918861,2652.9,2652.8,3.8]
[1645995061621,3.5,2652.8,2651.9,0.06843683]
[1645995061819,3.5,2652.8,2651.3,1.0]
[1645995062021,3.5,2652.8,2650.0,0.66834326]
[1645995062022,0.99918861,2652.0,2650.0,0.66834326]
[1645995062219,0.99918861,2652.0,2650.2,2.35213399]
[1645995062220,22.51118,2651.9,2650.2,2.35213399]
[1645995062420,22.51118,2651.9,2649.7,0.0081976]
[1645995062421,0.99918861,2651.4,2648.8,0.66696376]
[1645995062622,0.99918861,2651.4,2648.5,0.00200449]
[1645995062623,0.99918861,2650.3,2648.5,0.00200449]
[1645995062826,1.0,2649.9,2648.5,0.00200449]
[1645995063024,3.963,2650.2,2648.5,0.00200449]
[1645995063025,0.99918861,2648.9,2648.5,0.00200449]
[1645995063222,7.5442,2648.8,2648.5,0.00200449]
[1645995063423,0.463,2649.3,2646.5,1.91962211]
[1645995063424,1.0,2649.4,2648.9,2.52943315]
[1645995063622,0.05453,2650.1,2648.9,2.52943315]
[1645995063823,0.463,2651.2,2649.0,0.0128517]
[1645995064094,1.94439,2651.7,2649.7,0.01257576]
[1645995064095,3.5,2651.1,2649.7,0.01257576]
[1645995064298,1.0,2650.1,2649.7,0.01257576]
[1645995064498,6.53980933,2652.6,2649.8,5.0]
[1645995064705,43.18882964,2652.7,2650.6,5.0]
[1645995064706,0.65027579,2652.5,2650.6,5.0]
[1645995064902,0.9860573,2653.1,2650.6,5.0]
[1645995064903,0.014,2650.9,2650.6,5.0]
[1645995065098,0.014,2651.6,2650.7,1.06846781]
[1645995065298,0.463,2652.9,2650.7,0.06846781]
[1645995065504,1.16790567,2652.2,2651.1,1.04671004]
[1645995065703,1.0,2651.1,2650.4,5.0]
[1645995065903,3.5,2652.1,2651.5,1.062e-05]
[1645995065904,0.23816281,2651.6,2651.5,1.062e-05]
[1645995066108,3.963,2651.6,2651.5,1.062e-05]
[1645995066305,3.963,2651.6,2649.0,0.01212467]
[1645995066306,18.5,2651.5,2650.5,0.00426216]
[1645995066504,18.5,2651.5,2650.5,6.216e-05]
[1645995066505,15.623,2651.4,2650.5,6.216e-05]
[1645995066705,25.623,2651.4,2650.5,6.216e-05]
[1645995066916,1.0,2650.6,2650.5,6.216e-05]
[1645995067105,18.69560777,2650.5,2650.2,5.755e-05]
[1645995067306,0.9249,2650.5,2650.2,5.755e-05]
[1645995067505,1.0,2650.3,2650.2,5.755e-05]
[1645995067704,1.65241851,2650.3,2650.2,5.755e-05]
[1645995068124,1.06897223,2650.2,2648.9,2.52943315]
[1645995068325,1.06897223,2650.2,2649.0,5.0]
[1645995068326,0.05322,2650.2,2649.0,5.0]
[1645995068525,1.0,2649.2,2648.9,2.52943315]
[1645995068728,1.0,2649.2,2648.7,0.00073169]
[1645995068729,1.0,2649.1,2648.7,0.00073169]
[1645995068928,0.18065297,2649.0,2648.7,0.00073169]
[1645995069127,0.18065297,2649.0,2647.2,5.0]
[1645995069128,0.19024461,2648.9,2647.2,5.0]
[1645995069533,0.19750003,2648.7,2647.1,1.36891647]
[1645995069728,0.9804,2648.9,2647.1,4.86891647]
[1645995069729,1.0,2647.6,2647.1,4.86891647]
[1645995069929,3.75874094,2649.1,2647.6,0.40821316]
[1645995070129,3.5,2649.0,2647.6,0.40821316]
[1645995070333,0.249,2647.7,2647.6,0.40821316]
[1645995070532,37.32570625,2649.2,2647.6,0.40821316]
[1645995070533,0.463,2648.6,2647.6,0.40821316]
[1645995070730,0.26960185,2648.6,2647.6,0.40821316]
[1645995070932,37.32570625,2649.2,2647.6,0.40821316]
[1645995070933,1.0,2647.7,2647.6,0.40821316]
[1645995071329,0.24962255,2649.1,2647.6,6.762943]
[1645995071611,5.9484,2650.5,2647.6,6.762943]
[1645995071612,0.25996342,2650.4,2647.7,3.56433202]
[1645995071806,5.9513,2650.7,2648.3,0.0122379]
[1645995071807,0.5,2649.2,2648.3,0.0122379]
[1645995072002,0.5,2649.2,2648.2,5.0]
[1645995072208,3.88095,2650.6,2647.8,5.01112878]
[1645995072209,0.64382977,2649.6,2647.8,5.01112878]
[1645995072405,1.0,2648.3,2647.8,0.01112878]
[1645995072802,0.463,2649.3,2647.8,0.01112878]
[1645995072803,1.0,2647.9,2647.8,0.01112878]
[1645995073003,1.0,2647.9,2647.6,0.39213268]
[1645995073204,1.0,2647.9,2647.6,0.38367396]
[1645995073408,1.0,2647.8,2646.6,5.0]
[1645995073707,1.0,2647.7,2646.1,0.00390724]
[1645995073906,1.00393939,2647.7,2646.1,0.00390724]
[1645995074106,1.0,2647.1,2646.4,0.04035807]
[1645995074307,0.00393939,2647.7,2646.4,0.04035807]
[1645995074308,0.00393939,2647.7,2647.0,5.0]
[1645995074506,0.00393939,2647.7,2646.6,0.3802]
[1645995074507,0.00393939,2647.7,2647.6,5.0]
[1645995075328,0.00393939,2647.7,2647.5,1.0]
[1645995075329,0.00226339,2647.7,2647.5,1.0]
[1645995075525,0.00226339,2647.7,2647.0,0.00321745]
[1645995075728,1.00226339,2647.7,2646.5,5.0]
[1645995075930,1.0,2647.1,2646.4,0.04035807]
[1645995076129,1.0,2647.1,2646.9,5.0]
[1645995076331,0.05333,2647.6,2646.9,5.0]
[1645995076534,0.00226339,2647.7,2646.2,0.05421489]
[1645995076535,0.00226339,2647.7,2646.6,1.0]
[1645995076732,1.0,2647.4,2647.1,5.0]
[1645995077033,0.00226339,2647.7,2647.1,5.0]
[1645995077233,0.00226339,2647.7,2647.6,5.0]
[1645995077429,0.00226339,2647.7,2646.9,1.0]
[1645995077430,1.0,2647.6,2646.9,1.0]
[1645995077630,1.00226339,2647.7,2646.7,1.0]
[1645995077830,1.00226339,2647.7,2647.1,5.010436]
[1645995078030,1.0,2647.6,2647.1,5.010436]
[1645995078332,0.00226339,2647.7,2647.1,5.010436]
[1645995078333,1.0,2647.5,2647.1,0.010436]
[1645995078532,0.998324,2647.2,2647.1,0.010436]
[1645995078731,0.998324,2647.2,2646.6,2.0]
[1645995078732,0.998324,2647.2,2646.2,0.50449492]
[1645995078931,0.27737522,2647.6,2646.2,0.04149492]
[1645995079167,0.28114235,2647.6,2647.0,3.64e-05]
[1645995079376,0.463,2647.5,2647.0,3.64e-05]
[1645995079577,0.463,2647.5,2646.8,0.00793246]
[1645995079578,18.74426956,2647.3,2646.8,0.00793246]
[1645995079774,1.2189043,2647.1,2646.8,3.246e-05]
[1645995079970,1.2189043,2647.1,2646.2,0.04149492]
[1645995079971,0.28719131,2647.0,2646.2,0.04149492]
[1645995080171,1.24734168,2646.9,2646.2,0.04149492]
[1645995080372,0.999324,2646.3,2646.2,0.04149492]
[1645995080772,0.999324,2646.3,2645.3,5.0]
[1645995081173,0.999324,2646.3,2645.2,0.00540653]
[1645995081376,0.999324,2645.8,2645.2,0.00215832]
[1645995081574,1.21807442,2645.8,2645.2,0.00215832]
[1645995081772,0.997648,2645.3,2645.2,0.00215832]
[1645995082378,0.997648,2645.3,2645.1,0.0166411]
[1645995082379,18.5,2645.8,2645.1,0.00431664]
[1645995082574,1.15800478,2646.2,2645.0,0.00914679]
[1645995082575,18.5,2645.2,2645.0,0.00914679]
[1645995082816,9.70793108,2645.0,2643.5,5.0]
[1645995083017,0.999648,2645.2,2644.6,3.8]
[1645995083221,0.94509862,2646.1,2644.6,3.8]
[1645995083222,0.463,2646.1,2644.6,8.8]
[1645995083424,0.463,2646.1,2644.9,5.0]
[1645995083425,0.71934433,2646.1,2644.9,5.0]
[1645995083623,37.32570625,2646.4,2644.7,5.0]
[1645995083822,0.999648,2644.9,2644.7,5.1511]
[1645995084021,0.00412778,2646.3,2645.1,0.53091981]
[1645995084623,0.00412778,2646.3,2645.4,5.0]
[1645995084624,1.0,2645.8,2645.4,5.0]
[1645995084825,1.0,2645.8,2645.1,0.53091981]
[1645995084826,1.0,2645.8,2645.7,0.001675]
[1645995085029,0.22574416,2646.2,2645.7,0.001675]
[1645995085223,1.0,2645.8,2645.7,0.001675]
[1645995085825,0.00412778,2646.3,2645.7,0.001675]
[1645995085826,0.05347,2646.2,2645.9,0.68838987]
[1645995086323,0.00412778,2646.3,2645.9,0.68838987]
[1645995086572,0.943,2646.0,2645.9,0.68838987]
[1645995086973,53.32570625,2646.2,2645.7,7.5e-05]
[1645995087175,53.32570625,2646.2,2645.1,0.53091981]
[1645995087176,1.0,2646.0,2645.1,0.53091981]
[1645995087371,3.963,2645.9,2645.1,0.53091981]
[1645995087577,1.38095,2645.8,2645.7,3.849e-05]
[1645995087773,7.93595,2645.8,2645.7,3.849e-05]
[1645995088172,8.555,2645.8,2645.7,3.849e-05]
[1645995088374,8.555,2645.8,2645.2,8.392e-05]
[1645995088375,18.5,2645.7,2645.2,8.392e-05]
[1645995088574,3.88095,2645.6,2645.2,8.392e-05]
[1645995088774,1.0,2645.3,2643.5,5.0]
[1645995088974,38.22135225,2645.2,2643.5,5.0]
[1645995089174,42.72135225,2645.2,2643.4,0.1512]
[1645995089373,1.36808376,2644.9,2643.6,5.0]
[1645995089574,42.72135225,2645.2,2643.2,0.1512]
[1645995089575,3.88095,2644.8,2643.2,0.1512]
[1645995089775,3.88095,2644.8,2643.5,5.0]
[1645995089776,1.0,2643.7,2643.5,5.0]
[1645995090189,0.3802,2644.5,2642.5,0.1512]
[1645995090190,1.0,2643.3,2642.5,0.1512]
[1645995090427,1.463,2643.6,2642.4,0.06]
[1645995090624,1.463,2643.6,2642.5,5.1512]
[1645995090828,1.0,2642.6,2642.4,0.06]
[1645995091026,1.0,2642.5,2642.4,0.06]
[1645995091229,1.0,2642.5,2642.4,5.06]
[1645995091431,0.05333,2643.8,2642.4,5.06]
[1645995091432,1.0,2642.9,2642.4,6.06]
[1645995091629,1.0,2643.0,2642.8,5.0]
[1645995092032,0.463,2643.7,2642.8,4.95]
[1645995092332,1.0,2642.9,2642.8,4.95]
[1645995093933,0.63808762,2643.9,2642.8,4.95]
[1645995093934,0.00438047,2643.2,2642.8,4.95]
[1645995094172,0.38095,2644.5,2643.1,4.95]
[1645995094173,0.01322882,2643.6,2643.1,4.95]
[1645995094372,1.0,2643.3,2642.6,0.00733848]
[1645995094569,1.0,2643.3,2643.2,4.95]
[1645995094769,0.01322882,2643.6,2643.2,4.95]
[1645995094970,0.01322882,2643.6,2643.5,4.95]
[1645995095379,0.01170582,2643.6,2643.5,4.95]
[1645995095575,1.01170582,2643.6,2643.1,1.030905]
[1645995095778,1.01170582,2643.6,2643.5,4.95]
[1645995095975,0.01170582,2643.6,2643.5,4.95]
[1645995096379,0.01245276,2643.7,2643.5,4.95]
[1645995096578,0.01245276,2643.7,2643.5,5.95]
[1645995096579,5.276e-05,2643.7,2643.5,5.95]
[1645995097677,5.276e-05,2643.7,2643.5,4.95]
[1645995098127,1.0,2643.6,2643.3,4.95]
[1645995098528,1.0,2643.6,2643.3,4.95254408]
[1645995098529,0.998476,2643.6,2643.3,4.95254408]
[1645995098828,5.276e-05,2643.7,2643.5,4.95]
[1645995099026,0.00396478,2643.6,2643.5,6.08379826]
[1645995099226,0.01805908,2643.6,2643.5,4.95]
[1645995099431,0.03193997,2643.6,2643.5,4.95]
[1645995099633,0.03193997,2643.6,2643.3,4.95220265]
[1645995099831,1.03141597,2643.6,2643.5,4.95]
[1645995100032,0.03193997,2643.6,2643.5,4.95]
[1645995100438,0.01326909,2643.7,2643.6,0.01266525]
[1645995101233,1.01274509,2643.7,2643.6,0.01266525]
[1645995101686,1.01122109,2643.7,2643.6,0.01266525]
[1645995101881,1.06360109,2643.7,2643.6,0.01266525]
[1645995102475,1.01122109,2643.7,2643.6,0.01266525]
[1645995103976,1.01122109,2643.7,2643.6,4.96266525]
[1645995104179,1.01122109,2643.7,2643.6,0.01266525]
[1645995104180,0.999476,2643.7,2643.6,0.01266525]
[1645995104775,0.997952,2643.7,2643.6,0.01266525]
[1645995105175,0.06433202,2644.7,2643.6,0.01266525]
[1645995105435,6.5708831,2646.0,2643.6,0.01266525]
[1645995105436,0.05355,2645.2,2644.5,4.95]
[1645995105631,0.999952,2644.2,2643.9,0.3802]
[1645995105823,0.999952,2644.2,2643.8,6.36286192]
[1645995105824,0.999952,2644.2,2644.1,6.3302]
[1645995106024,7.555,2645.1,2644.8,1.6889088]
[1645995106225,7.555,2645.1,2645.0,4.95]
[1645995106626,7.555,2645.1,2644.8,1.6889088]
[1645995106826,8.555,2645.1,2644.8,1.6889088]
[1645995107227,1.0,2644.9,2644.8,1.6889088]
[1645995107626,0.998476,2644.9,2644.8,1.6889088]
[1645995108025,7.555,2645.1,2644.8,1.6889088]
[1645995108426,0.999476,2644.9,2644.8,1.6889088]
[1645995109978,0.999476,2644.9,2644.8,6.6389088]
[1645995110378,0.999476,2644.9,2644.8,1.6889088]
[1645995110578,0.997952,2644.9,2644.8,1.6889088]
[1645995110977,7.555,2645.1,2644.8,1.6889088]
[1645995111176,0.999952,2644.9,2644.8,1.6889088]
[1645995111780,7.555,2645.1,2644.9,8.5]
[1645995111781,4.019723,2645.1,2644.9,8.5]
[1645995111982,4.019723,2645.1,2644.8,1.6889088]
[1645995112181,4.019723,2645.1,2645.0,4.95]
[1645995112381,3.969723,2645.1,2645.0,4.95]
[1645995112582,3.969723,2645.1,2644.8,1.6889088]
[1645995112816,4.969723,2645.1,2644.8,1.6889088]
[1645995113016,4.969723,2645.1,2644.8,6.64557668]
[1645995113217,0.998476,2644.9,2644.8,6.64557668]
[1645995113623,0.00362908,2644.9,2644.8,6.64557668]
[1645995113825,0.00362908,2644.9,2644.8,6.6389088]
[1645995114025,1.00310508,2644.9,2644.8,6.6389088]
[1645995117465,1.00310508,2644.9,2644.8,10.4389088]
[1645995118876,1.00310508,2644.9,2644.8,5.4889088]
[1645995119070,1.22064506,2644.9,2644.8,5.4889088]
[1645995119668,1.27388506,2644.9,2644.8,5.4889088]
[1645995119870,1.27388506,2644.9,2644.6,0.00711295]
[1645995119871,14.00540211,2644.9,2644.6,0.00711295]
[1645995120075,11.71324,2644.8,2644.6,0.00711295]
[1645995120318,11.71324,2644.8,2643.2,4.95]
[1645995120319,0.24737468,2644.6,2643.2,4.95]
[1645995120617,12.659476,2644.4,2643.3,0.00096]
[1645995120818,12.659476,2644.4,2643.0,3.106]
[1645995120819,0.29311852,2644.3,2643.1,0.00096]
[1645995121321,0.999476,2643.7,2643.3,4.95]
[1645995121522,0.999476,2643.7,2643.3,0.00096]
[1645995121720,0.999476,2643.7,2643.1,0.00096]
[1645995121919,0.999476,2643.7,2642.9,4.95]
[1645995121920,0.999476,2643.7,2643.6,6.525e-05]
[1645995122721,1.052716,2643.7,2643.6,6.525e-05]
[1645995123124,16.593666,2643.7,2643.6,6.525e-05]
[1645995123323,16.593666,2643.7,2642.4,0.06096]
[1645995123324,11.66,2643.5,2642.4,0.06096]
[1645995123522,0.05,2643.2,2641.6,0.00096]
[1645995123721,0.999476,2642.5,2641.3,6.16549164]
[1645995123926,0.999476,2642.5,2641.4,1.21453164]
[1645995124176,0.999476,2641.7,2641.5,1.21549164]
[1645995124375,11.66,2642.8,2641.6,1.21549164]
[1645995124575,10.22624,2642.8,2641.7,1.21453164]
[1645995124775,47.55042225,2642.8,2641.4,0.00096]
[1645995124979,47.55042225,2642.8,2640.9,0.66696376]
[1645995124980,3.5,2641.6,2640.9,5.0]
[1645995125177,0.999476,2641.7,2641.4,0.00096]
[1645995125377,0.999476,2641.5,2641.0,1.14171422]
[1645995125576,0.999476,2641.5,2640.7,0.00096]
[1645995125777,0.44453202,2642.0,2640.7,0.00096]
[1645995125778,0.999476,2641.1,2640.7,1.14436422]
[1645995125978,0.463,2641.9,2641.8,0.31110302]
[1645995126181,0.463,2641.9,2640.5,0.01299511]
[1645995126182,16.31109698,2641.8,2640.5,0.01299511]
[1645995126485,16.31109698,2641.8,2640.6,0.82606668]
[1645995126486,12.50395,2641.7,2640.6,0.82606668]
[1645995126681,12.50395,2641.7,2640.0,0.68501836]
[1645995126682,18.5,2641.4,2639.6,1.64269578]
[1645995126881,1.0,2640.6,2639.6,1.64269578]
[1645995127086,1.463,2640.6,2639.7,0.00096]
[1645995127279,0.463,2640.6,2639.7,0.00096]
[1645995127840,1.0,2639.8,2639.7,0.00096]
[1645995128129,1.0,2639.8,2639.6,1.64269578]
[1645995128334,1.0,2639.8,2639.0,0.0501]
[1645995128335,1.17276777,2639.3,2638.9,0.05328]
[1645995128537,9.5,2639.5,2638.6,0.00096]
[1645995128538,8.06433202,2639.2,2638.6,0.00096]
[1645995128736,8.06433202,2639.2,2639.0,0.04092649]
[1645995128737,11.5,2639.1,2639.0,0.04092649]
[1645995128934,11.5,2639.1,2637.9,0.01682999]
[1645995128935,1.0,2638.7,2637.9,0.01682999]
[1645995129143,1.0,2638.7,2638.6,5.0]
[1645995129334,3.969723,2639.1,2638.6,5.0]
[1645995129335,3.969723,2639.1,2638.6,6.0]
[1645995129534,3.969723,2639.1,2639.0,6.04112433]
[1645995129935,1.0,2639.4,2639.1,15.0288]
[1645995130137,1.0,2639.4,2639.3,5.0]
[1645995130334,1.0,2639.7,2639.3,5.0]
[1645995130534,0.84395,2640.9,2639.3,5.0]
[1645995130535,1.0,2639.4,2639.3,5.0]
[1645995130734,1.0,2639.4,2638.7,5.0]
[1645995130937,1.0,2639.4,2638.6,0.00571043]
[1645995130938,0.63262075,2639.4,2638.6,0.00571043]
[1645995131142,0.63262075,2638.7,2638.2,5.0]
[1645995131339,9.5,2638.6,2637.9,0.01682999]
[1645995131581,3.5,2638.6,2637.9,0.01778999]
[1645995131777,3.5,2638.6,2637.0,2.881]
[1645995131778,0.99962075,2638.0,2637.8,0.46778999]
[1645995131968,0.99962075,2638.0,2637.9,5.0]
[1645995132170,0.05333,2638.8,2638.0,1.22067925]
[1645995132370,0.05333,2638.8,2638.1,5.0]
[1645995132568,0.05333,2638.8,2638.3,5.0]
[1645995132769,0.05333,2638.8,2638.0,1.26120944]
[1645995132770,0.99962075,2638.4,2638.1,0.00096]
[1645995133067,0.99962075,2638.4,2638.1,1.40348899]
[1645995133268,2.97135952,2639.4,2638.0,1.26120944]
[1645995133269,0.99962075,2638.3,2638.0,1.26120944]
[1645995133469,0.42632075,2638.2,2638.0,1.26120944]
[1645995133669,0.42632075,2638.2,2638.0,6.22067925]
[1645995133869,0.05335,2639.2,2638.1,18.0]
[1645995134070,0.05335,2639.2,2639.1,5.0]
[1645995134274,7.5782,2639.2,2638.1,0.00096]
[1645995134471,7.5782,2639.2,2638.7,5.0]
[1645995134671,7.5782,2639.2,2638.8,5.0]
[1645995134972,7.5782,2639.2,2639.0,5.0]
[1645995135618,1.0,2639.1,2639.0,5.0]
[1645995135916,1.0,2639.1,2638.8,5.0]
[1645995136118,1.0,2639.1,2638.5,5.0]
[1645995136119,0.24531612,2639.0,2638.5,5.0]
[1645995136319,1.0,2638.8,2638.5,0.00386262]
[1645995136516,1.21642216,2638.8,2638.5,0.00386262]
[1645995136723,0.38095,2639.1,2638.5,0.00386262]
[1645995136724,1.0,2638.6,2638.5,0.00386262]
[1645995137128,8.5782,2638.6,2638.5,0.00386262]
[1645995137320,8.5782,2638.6,2638.1,0.00096]
[1645995137520,8.5782,2638.6,2638.0,1.22067925]
[1645995137521,8.54435301,2638.6,2638.0,1.22067925]
[1645995137723,0.96615301,2638.2,2638.0,1.22365636]
[1645995137920,0.05337,2638.5,2638.0,1.22365636]
[1645995138120,0.05337,2638.5,2638.4,1.0]
[1645995138322,0.99915301,2638.1,2638.0,1.22365636]
[1645995138623,0.99915301,2638.1,2636.1,1.32905922]
[1645995138624,1.2236,2638.0,2637.2,0.00096]
[1645995138823,41.20513225,2637.9,2636.4,0.00096]
[1645995139073,41.20513225,2637.9,2636.1,5.00096]
[1645995139074,0.463,2637.8,2636.1,5.00096]
[1645995139272,0.463,2637.8,2636.2,0.00096]
[1645995139273,0.99915301,2637.3,2636.2,0.00096]
[1645995139577,0.99915301,2636.2,2636.1,4.95096]
[1645995139774,1.0,2637.0,2636.3,0.08975448]
[1645995139976,3.5534,2637.7,2636.3,0.08975448]
[1645995139977,0.0534,2637.7,2636.3,0.08975448]
[1645995140176,0.0534,2637.7,2637.3,4.95096]
[1645995140375,1.08934347,2639.1,2638.0,1.05346348]
[1645995140376,0.43434,2639.0,2638.0,1.05346348]
[1645995140676,7.5801,2638.9,2638.0,4.95096]
[1645995140876,7.5801,2638.9,2637.8,0.04151301]
[1645995140877,7.5801,2638.9,2638.1,0.00096]
[1645995141074,7.5801,2638.9,2637.8,4.99247301]
[1645995141076,7.5801,2638.9,2638.2,4.95096]
[1645995141277,7.5801,2638.9,2638.5,1.0]
[1645995141575,1.0,2638.7,2638.5,1.0]
[1645995141776,8.5801,2638.6,2638.5,1.0]
[1645995141980,8.5801,2638.6,2638.5,5.95096]
[1645995141981,7.5801,2638.6,2638.5,5.95096]
[1645995142187,8.5801,2638.6,2638.5,5.95096]
[1645995142379,9.5801,2638.6,2638.5,5.95096]
[1645995142579,0.00454928,2639.1,2638.6,1.2996]
[1645995142817,0.00454928,2639.1,2639.0,4.95096]
[1645995143219,1.00454928,2639.1,2639.0,4.95096]
[1645995143618,0.3,2640.7,2639.1,0.4096]
[1645995143819,0.3,2640.7,2639.1,0.41056]
[1645995144016,0.3,2640.7,2640.2,4.82261245]
[1645995144221,0.3,2640.7,2639.2,0.46396]
[1645995144222,0.3,2640.7,2640.3,1.0]
[1645995144524,0.59,2640.3,2639.3,4.82261245]
[1645995144722,0.59,2640.3,2639.9,0.00096]
[1645995144917,0.05247,2640.6,2639.4,0.00096]
[1645995144918,0.54,2640.0,2639.4,0.00096]
[1645995145118,0.54,2640.0,2639.2,0.00096]
[1645995145317,1.0,2640.2,2639.7,4.82261245]
[1645995145921,0.95,2639.8,2639.4,0.00096]
[1645995146119,0.95,2640.2,2639.9,0.18778034]
[1645995146586,0.05,2640.0,2639.9,0.18778034]
[1645995146792,0.05247,2641.1,2640.8,1.0]
[1645995146989,0.76203492,2641.8,2640.8,1.0]
[1645995146990,0.38095,2641.8,2641.0,4.82261245]
[1645995147188,0.24386669,2641.6,2641.0,4.82261245]
[1645995147397,7.5717,2641.7,2641.5,4.82261245]
[1645995147591,7.5217,2641.7,2641.5,4.82261245]
[1645995148090,0.95,2641.6,2640.9,0.00096]
[1645995148290,0.95,2641.6,2641.2,4.82261245]
[1645995148491,7.5217,2641.7,2641.2,5.82261245]
[1645995148695,0.26584436,2641.6,2641.2,1.0]
[1645995148891,0.21162896,2641.5,2641.3,0.00452077]
[1645995149193,7.5217,2641.7,2641.3,0.00452077]
[1645995149390,7.78331324,2641.7,2641.3,0.00452077]
[1645995149592,1.0,2641.4,2641.3,1.00452077]
[1645995149899,7.78331324,2641.7,2641.3,1.00452077]
[1645995149900,7.5217,2641.7,2641.4,0.3802]
[1645995150093,7.5217,2641.7,2641.3,1.0]
[1645995150094,7.4717,2641.7,2641.3,1.0]
[1645995150322,7.4717,2641.7,2641.2,0.00452095]
[1645995150323,7.4717,2641.7,2641.6,4.82261245]
[1645995151024,8.2837,2641.7,2641.6,4.82261245]
[1645995151235,8.2837,2641.7,2641.3,1.0]
[1645995151236,8.2837,2641.7,2641.4,0.00411886]
[1645995151434,0.1953971,2641.6,2641.4,0.00411886]
[1645995151638,1.0,2641.5,2641.4,0.00411886]
[1645995152029,1.18935026,2641.5,2641.4,0.00411886]
[1645995152238,1.18935026,2641.5,2641.1,0.00247156]
[1645995152239,15.0,2641.4,2641.1,0.00247156]
[1645995152437,3.88095,2641.3,2641.2,0.00411917]
[1645995152630,3.88095,2641.3,2639.1,0.463]
[1645995152631,10.24259648,2641.2,2639.1,0.463]
[1645995152829,0.21501369,2641.1,2640.2,0.00096]
[1645995153030,1.0,2640.6,2640.0,0.38116]
[1645995153231,1.0,2640.6,2640.5,4.78421795]
[1645995153429,1.0,2640.6,2640.5,5.78421795]
[1645995153629,2.0,2640.6,2640.5,5.78421795]
[1645995153831,7.42546121,2641.7,2640.7,0.3802]
[1645995154079,7.42546121,2641.7,2640.6,14.5]
[1645995154080,7.42546121,2641.7,2641.6,1.0]
[1645995154278,7.42546121,2641.7,2641.6,5.78421795]
[1645995154681,8.42546121,2641.7,2641.6,4.78421795]
[1645995155280,7.42546121,2641.7,2641.6,7.45665704]
[1645995155479,7.42546121,2641.7,2641.6,7.07645704]
[1645995155681,7.42546121,2641.7,2641.6,7.45665704]
[1645995155880,7.42546121,2641.7,2641.6,5.78421795]
[1645995156681,7.42546121,2641.7,2641.6,6.16441795]
[1645995156879,7.42546121,2641.7,2641.6,7.2476217]
[1645995158525,7.42546121,2641.7,2641.6,6.16441795]
[1645995159529,7.42546121,2641.7,2641.6,7.18344246]
[1645995160334,7.37546121,2641.7,2641.6,7.18344246]
[1645995163972,7.37546121,2641.7,2641.6,6.80324246]
[1645995165625,1.0,2642.0,2641.7,11.0]
[1645995165626,0.00618173,2641.8,2641.7,11.0]
[1645995165825,0.00618173,2641.8,2641.7,16.91301337]
[1645995165826,8.173e-05,2641.8,2641.7,16.91301337]
[1645995166025,0.05219,2643.1,2641.9,0.3802]
[1645995166225,1.09835107,2644.7,2643.1,0.3802]
[1645995166226,0.66413449,2644.0,2643.1,0.3802]
[1645995166423,0.004,2643.2,2643.0,0.463]
[1645995166623,0.57921915,2643.8,2643.0,0.463]
[1645995166824,0.05205,2644.4,2643.4,5.16441795]
[1645995167024,1.0,2643.9,2643.4,4.78421795]
[1645995167224,1.6310523,2643.5,2643.4,4.78421795]
[1645995168023,0.6310523,2643.5,2643.4,4.78421795]
[1645995168229,1.6310523,2643.5,2643.4,4.78421795]
[1645995168425,1.5810523,2643.5,2643.4,6.000575]
[1645995168628,0.43265344,2643.5,2643.4,7.380775]
[1645995169073,0.43265344,2643.5,2643.4,6.24721795]
[1645995169279,1.43265344,2643.5,2643.4,5.78421795]
[1645995170490,2.23284334,2643.5,2642.3,2.9313]
[1645995170682,1.99243625,2643.5,2642.6,4.78421795]
[1645995170883,0.99243625,2643.5,2643.2,1.0]
[1645995171483,1.0,2643.3,2643.2,1.0]
[1645995172180,1.0,2643.3,2643.2,5.78421795]
[1645995173456,1.0,2643.3,2643.2,4.8]
[1645995174055,1.0,2643.3,2643.2,5.84525202]
[1645995174263,0.38095,2644.2,2643.4,10.0]
[1645995174458,0.38095,2644.2,2644.1,4.78421795]
[1645995174666,0.66413449,2645.3,2644.2,11.0]
[1645995174968,1.84017128,2646.0,2644.2,11.0]
[1645995174969,0.66413449,2646.3,2645.2,4.78421795]
[1645995175165,0.23892435,2646.2,2645.2,4.78421795]
[1645995175469,0.23892435,2646.2,2644.4,3.8802]
[1645995175470,7.8201675,2646.1,2644.9,4.78421795]
[1645995175665,7.8201675,2646.1,2644.7,4.78421795]
[1645995175666,1.0,2645.3,2644.7,4.78421795]
[1645995175864,1.0,2645.0,2644.6,0.1511]
[1645995176067,1.0,2645.0,2644.0,3.963]
[1645995176068,1.0,2645.0,2644.9,4.78421795]
[1645995176263,0.30668651,2646.0,2644.9,4.78421795]
[1645995176264,0.05326,2646.0,2644.9,4.78421795]
[1645995176463,1.0,2645.0,2644.9,5.84044681]
[1645995177073,0.00612487,2645.1,2644.9,6.22064681]
[1645995177273,2.923e-05,2645.5,2644.9,7.22064681]